[Event "Titled Tuesday Blitz June 27 Late 2023"]
[White "Ballester Llagaria, Luis Eduardo"]
[Black "Hansen, Eric"]
[WhiteFideId "2297620"]
[BlackFideId "2606771"]
[WhiteElo "2580"]
[BlackElo "2885"]
[Result "1-0"]
[Round "2"]
[TimeControl "180+2"]
[Date "2023.06.27"]
[WhiteClock "0:00:48"]
[BlackClock "0:00:05"]
[Board "37"]

1. e4 {[%clk 0:03:00]}  c6 {[%clk 0:02:59]} 2. Nc3 {[%clk 0:03:00]}  d5 {[%clk 0:03:00]} 3. Nf3 {[%clk 0:03:01]}  Bg4 {[%clk 0:02:59]} 4. h3 {[%clk 0:03:01]}  Bxf3 {[%clk 0:03:00]} 5. Qxf3 {[%clk 0:03:02]}  e6 {[%clk 0:03:00]} 6. d3 {[%clk 0:02:59]}  Bc5 {[%clk 0:02:58]} 7. Bd2 {[%clk 0:02:56]}  Nd7 {[%clk 0:02:58]} 8. g3 {[%clk 0:02:51]}  Ne7 {[%clk 0:02:57]} 9. Bg2 {[%clk 0:02:51]}  O-O {[%clk 0:02:58]} 10. O-O {[%clk 0:02:51]}  a5 {[%clk 0:02:56]} 11. a4 {[%clk 0:02:51]}  Qb6 {[%clk 0:02:55]} 12. b3 {[%clk 0:02:43]}  Bb4 {[%clk 0:02:52]} 13. Rad1 {[%clk 0:02:42]}  d4 {[%clk 0:02:49]} 14. Nb1 {[%clk 0:02:40]}  Qc5 {[%clk 0:02:45]} 15. Rc1 {[%clk 0:02:31]}  Bxd2 {[%clk 0:02:43]} 16. Nxd2 {[%clk 0:02:31]}  b5 {[%clk 0:02:44]} 17. Qe2 {[%clk 0:02:21]}  bxa4 {[%clk 0:02:42]} 18. bxa4 {[%clk 0:02:22]}  Nb6 {[%clk 0:02:42]} 19. Nb3 {[%clk 0:02:19]}  Qc3 {[%clk 0:02:40]} 20. Qe1 {[%clk 0:02:05]}  Qxe1 {[%clk 0:01:45]} 21. Rfxe1 {[%clk 0:02:06]}  e5 {[%clk 0:01:46]} 22. Nc5 {[%clk 0:02:05]}  Ra7 {[%clk 0:01:46]} 23. Rb1 {[%clk 0:02:05]}  Nd7 {[%clk 0:01:46]} 24. Nxd7 {[%clk 0:01:56]}  Rxd7 {[%clk 0:01:46]} 25. Rb6 {[%clk 0:01:57]}  Ra7 {[%clk 0:01:43]} 26. Reb1 {[%clk 0:01:56]}  g5 {[%clk 0:01:38]} 27. Bf3 {[%clk 0:01:54]}  Kg7 {[%clk 0:01:35]} 28. Bg4 {[%clk 0:01:53]}  Kg6 {[%clk 0:01:33]} 29. Bf5+ {[%clk 0:01:49]}  Kg7 {[%clk 0:01:19]} 30. Rb7 {[%clk 0:01:47]}  Rfa8 {[%clk 0:01:18]} 31. Kg2 {[%clk 0:01:39]}  h5 {[%clk 0:01:18]} 32. Kf3 {[%clk 0:01:37]}  Kf6 {[%clk 0:01:17]} 33. Rxa7 {[%clk 0:01:32]}  Rxa7 {[%clk 0:01:17]} 34. Rb6 {[%clk 0:01:32]}  Kg7 {[%clk 0:01:05]} 35. g4 {[%clk 0:01:20]}  h4 {[%clk 0:01:03]} 36. Ke2 {[%clk 0:01:20]}  Kf8 {[%clk 0:00:55]} 37. Kd2 {[%clk 0:01:15]}  f6 {[%clk 0:00:42]} 38. c3 {[%clk 0:01:14]}  Kf7 {[%clk 0:00:31]} 39. Kc2 {[%clk 0:01:13]}  Nxf5 {[%clk 0:00:19]} 40. exf5 {[%clk 0:01:12]}  dxc3 {[%clk 0:00:20]} 41. Kxc3 {[%clk 0:01:13]}  Rc7 {[%clk 0:00:17]} 42. Kc4 {[%clk 0:01:12]}  Rd7 {[%clk 0:00:18]} 43. Rxc6 {[%clk 0:00:48]}  Rd4+ {[%clk 0:00:18]} 44. Kb3 {[%clk 0:00:49]}  Rxa4 {[%clk 0:00:05]} 45. Kxa4 {[%clk 0:00:48]} 1-0


[Site "https://www.chess.com"]

[Event "Titled Tuesday Blitz June 27 Late 2023"]
[White "Mikaelyan, Arman"]
[Black "Sargsyan, Anna M."]
[WhiteFideId "13304852"]
[BlackFideId "13308130"]
[WhiteElo "2881"]
[BlackElo "2580"]
[Result "1-0"]
[Round "2"]
[TimeControl "180+2"]
[Date "2023.06.27"]
[WhiteClock "0:00:07"]
[BlackClock "0:00:03"]
[Board "38"]

1. Nf3 {[%clk 0:03:00]}  d5 {[%clk 0:02:58]} 2. d4 {[%clk 0:03:00]}  Nf6 {[%clk 0:02:58]} 3. c4 {[%clk 0:03:00]}  c6 {[%clk 0:02:58]} 4. Qc2 {[%clk 0:02:58]}  dxc4 {[%clk 0:02:58]} 5. Qxc4 {[%clk 0:02:59]}  Bf5 {[%clk 0:02:58]} 6. g3 {[%clk 0:02:59]}  Bxb1 {[%clk 0:02:45]} 7. Rxb1 {[%clk 0:02:58]}  Qd5 {[%clk 0:02:46]} 8. Qxd5 {[%clk 0:02:49]}  cxd5 {[%clk 0:02:44]} 9. Ne5 {[%clk 0:02:33]}  e6 {[%clk 0:02:41]} 10. Bd2 {[%clk 0:02:29]}  Bd6 {[%clk 0:02:40]} 11. Rc1 {[%clk 0:02:24]}  Nbd7 {[%clk 0:02:37]} 12. Nxd7 {[%clk 0:02:22]}  Kxd7 {[%clk 0:02:35]} 13. Bg2 {[%clk 0:02:16]}  Rac8 {[%clk 0:02:34]} 14. O-O {[%clk 0:02:16]}  Rxc1 {[%clk 0:02:33]} 15. Rxc1 {[%clk 0:02:17]}  Rc8 {[%clk 0:02:33]} 16. Rxc8 {[%clk 0:02:16]}  Kxc8 {[%clk 0:02:33]} 17. f3 {[%clk 0:02:12]}  Nd7 {[%clk 0:02:09]} 18. Kf2 {[%clk 0:02:08]}  Kc7 {[%clk 0:01:58]} 19. h4 {[%clk 0:02:03]}  Kc6 {[%clk 0:01:57]} 20. h5 {[%clk 0:01:49]}  Nb6 {[%clk 0:01:51]} 21. b3 {[%clk 0:01:48]}  Na8 {[%clk 0:01:08]} 22. e3 {[%clk 0:01:47]}  Nc7 {[%clk 0:01:07]} 23. Bf1 {[%clk 0:01:44]}  b5 {[%clk 0:00:50]} 24. Bd3 {[%clk 0:01:44]}  g6 {[%clk 0:00:50]} 25. g4 {[%clk 0:01:39]}  b4 {[%clk 0:00:26]} 26. f4 {[%clk 0:01:03]}  Nb5 {[%clk 0:00:24]} 27. h6 {[%clk 0:00:51]}  Bf8 {[%clk 0:00:14]} 28. g5 {[%clk 0:00:44]}  Nc3 {[%clk 0:00:13]} 29. Bxc3 {[%clk 0:00:38]}  bxc3 {[%clk 0:00:13]} 30. Ke2 {[%clk 0:00:39]}  a5 {[%clk 0:00:13]} 31. Kd1 {[%clk 0:00:36]}  Bb4 {[%clk 0:00:12]} 32. Kc2 {[%clk 0:00:36]}  Kb6 {[%clk 0:00:11]} 33. Be2 {[%clk 0:00:22]}  Kc6 {[%clk 0:00:11]} 34. Bf1 {[%clk 0:00:20]}  Kb6 {[%clk 0:00:11]} 35. Bg2 {[%clk 0:00:20]}  Kc6 {[%clk 0:00:12]} 36. e4 {[%clk 0:00:19]}  dxe4 {[%clk 0:00:12]} 37. Bxe4+ {[%clk 0:00:20]}  Kd6 {[%clk 0:00:11]} 38. Bf3 {[%clk 0:00:17]}  Kc7 {[%clk 0:00:12]} 39. d5 {[%clk 0:00:18]}  Kd6 {[%clk 0:00:11]} 40. dxe6 {[%clk 0:00:18]}  fxe6 {[%clk 0:00:11]} 41. Be4 {[%clk 0:00:18]}  Kd7 {[%clk 0:00:04]} 42. Bxg6 {[%clk 0:00:15]}  Bd6 {[%clk 0:00:05]} 43. f5 {[%clk 0:00:08]}  Bf4 {[%clk 0:00:05]} 44. Bxh7 {[%clk 0:00:04]}  Bxg5 {[%clk 0:00:05]} 45. Bg8 {[%clk 0:00:04]}  Bxh6 {[%clk 0:00:04]} 46. Bxe6+ {[%clk 0:00:03]}  Ke7 {[%clk 0:00:04]} 47. Kxc3 {[%clk 0:00:04]}  Bf4 {[%clk 0:00:03]} 48. Kc4 {[%clk 0:00:05]}  Bd2 {[%clk 0:00:03]} 49. Kb5 {[%clk 0:00:05]}  Kf6 {[%clk 0:00:03]} 50. Bc8 {[%clk 0:00:05]}  Be1 {[%clk 0:00:03]} 51. Kc4 {[%clk 0:00:05]}  Bd2 {[%clk 0:00:03]} 52. Kc5 {[%clk 0:00:06]}  Be1 {[%clk 0:00:04]} 53. Kb5 {[%clk 0:00:06]}  Bd2 {[%clk 0:00:04]} 54. a3 {[%clk 0:00:07]}  Bc1 {[%clk 0:00:03]} 55. Kxa5 {[%clk 0:00:06]}  Bxa3 {[%clk 0:00:02]} 56. b4 {[%clk 0:00:07]}  Bc1 {[%clk 0:00:02]} 57. b5 {[%clk 0:00:07]}  Bd2+ {[%clk 0:00:02]} 58. Ka6 {[%clk 0:00:07]}  Bf4 {[%clk 0:00:02]} 59. Kb7 {[%clk 0:00:07]}  Ke7 {[%clk 0:00:02]} 60. Kc6 {[%clk 0:00:07]}  Be5 {[%clk 0:00:02]} 61. b6 {[%clk 0:00:06]}  Kd8 {[%clk 0:00:03]} 62. Be6 {[%clk 0:00:07]}  Ke7 {[%clk 0:00:01]} 63. Kb7 {[%clk 0:00:07]}  Kd8 {[%clk 0:00:01]} 64. Ka7 {[%clk 0:00:06]}  Bd4 {[%clk 0:00:01]} 65. Ka6 {[%clk 0:00:07]}  Be5 {[%clk 0:00:01]} 66. Kb7 {[%clk 0:00:07]}  Bd4 {[%clk 0:00:01]} 67. Kc6 {[%clk 0:00:07]}  Bf6 {[%clk 0:00:01]} 68. b7 {[%clk 0:00:07]}  Be5 {[%clk 0:00:02]} 69. Kb6 {[%clk 0:00:07]}  Bd4+ {[%clk 0:00:02]} 70. Ka6 {[%clk 0:00:07]}  Kc7 {[%clk 0:00:02]} 71. f6 {[%clk 0:00:07]}  Bxf6 {[%clk 0:00:02]} 72. Ka7 {[%clk 0:00:07]}  Bd4+ {[%clk 0:00:02]} 73. Ka8 {[%clk 0:00:07]}  Ba7 {[%clk 0:00:02]} 74. Kxa7 {[%clk 0:00:07]}  Kd6 {[%clk 0:00:03]} 75. b8=Q+ {[%clk 0:00:07]} 1-0


[Site "https://www.chess.com"]

[Event "Titled Tuesday Blitz June 27 Late 2023"]
[White "Holt, Conrad"]
[Black "Ezat, Mohamed"]
[WhiteFideId "2034387"]
[BlackFideId "10600906"]
[WhiteElo "2865"]
[BlackElo "2575"]
[Result "1-0"]
[Round "2"]
[TimeControl "180+2"]
[Date "2023.06.27"]
[WhiteClock "0:00:54"]
[BlackClock "0:00:05"]
[Board "41"]

1. d4 {[%clk 0:03:00]}  Nf6 {[%clk 0:02:59]} 2. c4 {[%clk 0:03:01]}  g6 {[%clk 0:03:00]} 3. Nc3 {[%clk 0:02:59]}  Bg7 {[%clk 0:03:00]} 4. e4 {[%clk 0:02:59]}  O-O {[%clk 0:03:00]} 5. Nf3 {[%clk 0:02:59]}  d6 {[%clk 0:03:00]} 6. h3 {[%clk 0:03:00]}  c5 {[%clk 0:02:59]} 7. d5 {[%clk 0:03:00]}  b5 {[%clk 0:03:00]} 8. cxb5 {[%clk 0:02:59]}  a6 {[%clk 0:03:00]} 9. a4 {[%clk 0:02:59]}  Qa5 {[%clk 0:02:59]} 10. Nd2 {[%clk 0:02:54]}  axb5 {[%clk 0:02:56]} 11. Bxb5 {[%clk 0:02:52]}  Ba6 {[%clk 0:02:56]} 12. Ra3 {[%clk 0:02:51]}  Nbd7 {[%clk 0:02:53]} 13. O-O {[%clk 0:02:48]}  Rfb8 {[%clk 0:02:48]} 14. Nc4 {[%clk 0:02:40]}  Qd8 {[%clk 0:02:46]} 15. Qc2 {[%clk 0:02:38]}  Nb6 {[%clk 0:02:44]} 16. Ne3 {[%clk 0:02:31]}  Nfd7 {[%clk 0:02:42]} 17. Bd2 {[%clk 0:02:28]}  Bxb5 {[%clk 0:02:42]} 18. axb5 {[%clk 0:02:24]}  Ne5 {[%clk 0:02:34]} 19. Rfa1 {[%clk 0:02:01]}  c4 {[%clk 0:02:30]} 20. Ra6 {[%clk 0:01:55]}  Nd3 {[%clk 0:02:26]} 21. Ncd1 {[%clk 0:01:47]}  Qe8 {[%clk 0:01:42]} 22. Nxc4 {[%clk 0:01:35]}  Nxc4 {[%clk 0:01:27]} 23. Qxc4 {[%clk 0:01:33]}  Nxb2 {[%clk 0:01:22]} 24. Nxb2 {[%clk 0:01:29]}  Bxb2 {[%clk 0:01:22]} 25. Rxa8 {[%clk 0:01:19]}  Rxa8 {[%clk 0:01:18]} 26. Rb1 {[%clk 0:01:15]}  Bf6 {[%clk 0:01:11]} 27. b6 {[%clk 0:01:15]}  e6 {[%clk 0:00:42]} 28. b7 {[%clk 0:01:12]}  Rb8 {[%clk 0:00:42]} 29. dxe6 {[%clk 0:01:05]}  fxe6 {[%clk 0:00:40]} 30. Qc7 {[%clk 0:01:03]}  Be5 {[%clk 0:00:34]} 31. Rc1 {[%clk 0:00:58]}  Kf8 {[%clk 0:00:09]} 32. Qxb8 {[%clk 0:00:54]}  Qxb8 {[%clk 0:00:05]} 33. Rc8+ {[%clk 0:00:54]} 1-0


[Site "https://www.chess.com"]

[Event "Titled Tuesday Blitz June 27 Late 2023"]
[White "Ganiev, Roman"]
[Black "Elsa167"]
[WhiteFideId "4131452"]
[WhiteElo "2567"]
[BlackElo "2862"]
[Result "0-1"]
[Round "2"]
[TimeControl "180+2"]
[Date "2023.06.27"]
[WhiteClock "0:00:00"]
[BlackClock "0:00:47"]
[Board "42"]

1. e4 {[%clk 0:02:53]}  c5 {[%clk 0:02:59]} 2. Nf3 {[%clk 0:02:48]}  e6 {[%clk 0:02:59]} 3. d4 {[%clk 0:02:47]}  cxd4 {[%clk 0:03:00]} 4. Nxd4 {[%clk 0:02:47]}  Nf6 {[%clk 0:03:01]} 5. Nc3 {[%clk 0:02:47]}  Nc6 {[%clk 0:03:01]} 6. Ndb5 {[%clk 0:02:47]}  Bc5 {[%clk 0:03:01]} 7. Nd6+ {[%clk 0:02:43]}  Ke7 {[%clk 0:03:01]} 8. Bf4 {[%clk 0:02:44]}  e5 {[%clk 0:03:01]} 9. Nf5+ {[%clk 0:02:45]}  Kf8 {[%clk 0:03:01]} 10. Bg5 {[%clk 0:02:45]}  d6 {[%clk 0:03:02]} 11. Be2 {[%clk 0:02:40]}  h6 {[%clk 0:03:01]} 12. Bh4 {[%clk 0:02:27]}  g5 {[%clk 0:02:39]} 13. Bg3 {[%clk 0:02:25]}  Nxe4 {[%clk 0:02:34]} 14. Nxe4 {[%clk 0:02:24]}  Bxf5 {[%clk 0:02:34]} 15. Nxc5 {[%clk 0:02:24]}  dxc5 {[%clk 0:02:34]} 16. Qc1 {[%clk 0:02:03]}  Nd4 {[%clk 0:02:15]} 17. Bd1 {[%clk 0:02:03]}  Qd5 {[%clk 0:02:16]} 18. O-O {[%clk 0:02:00]}  Bxc2 {[%clk 0:02:13]} 19. Re1 {[%clk 0:01:41]}  Bxd1 {[%clk 0:02:06]} 20. Bxe5 {[%clk 0:01:40]}  Re8 {[%clk 0:01:45]} 21. f4 {[%clk 0:00:45]}  f6 {[%clk 0:01:35]} 22. Qxd1 {[%clk 0:00:40]}  fxe5 {[%clk 0:01:35]} 23. fxg5 {[%clk 0:00:41]}  Kg7 {[%clk 0:01:19]} 24. Qg4 {[%clk 0:00:34]}  h5 {[%clk 0:01:19]} 25. Qh4 {[%clk 0:00:31]}  Ref8 {[%clk 0:01:08]} 26. g6 {[%clk 0:00:24]}  Rf6 {[%clk 0:01:01]} 27. Rf1 {[%clk 0:00:20]}  Rxg6 {[%clk 0:01:00]} 28. Qe7+ {[%clk 0:00:14]}  Kh6 {[%clk 0:01:00]} 29. Rf2 {[%clk 0:00:09]}  Nf5 {[%clk 0:00:56]} 30. Qc7 {[%clk 0:00:06]}  Rhg8 {[%clk 0:00:46]} 31. g3 {[%clk 0:00:03]}  Nxg3 {[%clk 0:00:46]} 32. hxg3 {[%clk 0:00:03]}  Rxg3+ {[%clk 0:00:47]} 33. Kf1 {[%clk 0:00:04]}  Qd3+ {[%clk 0:00:47]} 34. Ke1 {[%clk 0:00:00]}  Re3+ {[%clk 0:00:47]} 0-1


[Site "https://www.chess.com"]

[Event "Titled Tuesday Blitz June 27 Late 2023"]
[White "Fantinel, Thibault"]
[Black "Licznerski, Lukasz"]
[WhiteFideId "663395"]
[BlackFideId "1179250"]
[WhiteElo "2566"]
[BlackElo "2856"]
[Result "0-1"]
[Round "2"]
[TimeControl "180+2"]
[Date "2023.06.27"]
[WhiteClock "0:00:00"]
[BlackClock "0:00:05"]
[Board "43"]

1. c4 {[%clk 0:02:59]}  Nf6 {[%clk 0:02:59]} 2. g3 {[%clk 0:02:59]}  g6 {[%clk 0:02:59]} 3. Bg2 {[%clk 0:03:00]}  d5 {[%clk 0:03:00]} 4. Nc3 {[%clk 0:03:01]}  d4 {[%clk 0:02:57]} 5. Nd5 {[%clk 0:02:55]}  Bg7 {[%clk 0:02:49]} 6. Nxf6+ {[%clk 0:02:50]}  Bxf6 {[%clk 0:02:50]} 7. Nf3 {[%clk 0:02:51]}  O-O {[%clk 0:02:49]} 8. d3 {[%clk 0:02:50]}  c5 {[%clk 0:02:47]} 9. O-O {[%clk 0:02:48]}  Nc6 {[%clk 0:02:47]} 10. a3 {[%clk 0:02:40]}  a5 {[%clk 0:02:42]} 11. Bh6 {[%clk 0:02:31]}  Bg7 {[%clk 0:02:42]} 12. Bxg7 {[%clk 0:02:31]}  Kxg7 {[%clk 0:02:43]} 13. e3 {[%clk 0:02:29]}  Rb8 {[%clk 0:02:20]} 14. exd4 {[%clk 0:02:10]}  Nxd4 {[%clk 0:02:19]} 15. Nxd4 {[%clk 0:02:10]}  Qxd4 {[%clk 0:02:19]} 16. Re1 {[%clk 0:02:10]}  Be6 {[%clk 0:01:53]} 17. Qc2 {[%clk 0:01:58]}  Rfd8 {[%clk 0:01:49]} 18. Re3 {[%clk 0:01:53]}  b5 {[%clk 0:01:49]} 19. cxb5 {[%clk 0:01:24]}  Rxb5 {[%clk 0:01:48]} 20. Rc1 {[%clk 0:01:21]}  Rxb2 {[%clk 0:01:44]} 21. Qd1 {[%clk 0:01:12]}  c4 {[%clk 0:01:33]} 22. Qa4 {[%clk 0:00:19]}  cxd3 {[%clk 0:01:25]} 23. Qxa5 {[%clk 0:00:20]}  Rdb8 {[%clk 0:00:17]} 24. Bf1 {[%clk 0:00:07]}  d2 {[%clk 0:00:10]} 25. Rd1 {[%clk 0:00:08]}  Bb3 {[%clk 0:00:09]} 26. Rxd2 {[%clk 0:00:00]}  Rxd2 {[%clk 0:00:05]} 0-1


[Site "https://www.chess.com"]

[Event "Titled Tuesday Blitz June 27 Late 2023"]
[White "Bjelobrk, Igor"]
[Black "Haydon, David L"]
[WhiteFideId "4300726"]
[BlackFideId "415405"]
[WhiteElo "2553"]
[BlackElo "2802"]
[Result "0-1"]
[Round "2"]
[TimeControl "180+2"]
[Date "2023.06.27"]
[WhiteClock "0:00:02"]
[BlackClock "0:00:44"]
[Board "49"]

1. d4 {[%clk 0:03:00]}  c6 {[%clk 0:02:59]} 2. c4 {[%clk 0:03:00]}  d5 {[%clk 0:03:00]} 3. Nf3 {[%clk 0:03:00]}  Nf6 {[%clk 0:03:00]} 4. Qc2 {[%clk 0:02:59]}  e6 {[%clk 0:02:59]} 5. g3 {[%clk 0:02:57]}  Bd6 {[%clk 0:02:59]} 6. Nc3 {[%clk 0:02:52]}  Nbd7 {[%clk 0:02:59]} 7. e4 {[%clk 0:02:46]}  dxe4 {[%clk 0:02:59]} 8. Nxe4 {[%clk 0:02:47]}  Nxe4 {[%clk 0:02:59]} 9. Qxe4 {[%clk 0:02:47]}  Bb4+ {[%clk 0:03:00]} 10. Bd2 {[%clk 0:02:43]}  Qa5 {[%clk 0:02:58]} 11. a3 {[%clk 0:02:38]}  Bxd2+ {[%clk 0:02:57]} 12. Nxd2 {[%clk 0:02:39]}  c5 {[%clk 0:02:53]} 13. O-O-O {[%clk 0:02:34]}  cxd4 {[%clk 0:02:49]} 14. Nb3 {[%clk 0:02:28]}  Qb6 {[%clk 0:02:48]} 15. Nxd4 {[%clk 0:02:20]}  O-O {[%clk 0:02:46]} 16. Bd3 {[%clk 0:02:14]}  Nf6 {[%clk 0:02:25]} 17. Qh4 {[%clk 0:02:14]}  e5 {[%clk 0:02:23]} 18. Nb5 {[%clk 0:02:12]}  Be6 {[%clk 0:02:17]} 19. Kb1 {[%clk 0:01:58]}  Rad8 {[%clk 0:02:10]} 20. c5 {[%clk 0:01:39]}  Qxc5 {[%clk 0:02:03]} 21. Bxh7+ {[%clk 0:01:39]}  Nxh7 {[%clk 0:01:59]} 22. Rxd8 {[%clk 0:01:39]}  Qxb5 {[%clk 0:01:59]} 23. Rhd1 {[%clk 0:01:27]}  Qb3 {[%clk 0:01:48]} 24. Rxf8+ {[%clk 0:01:13]}  Nxf8 {[%clk 0:01:48]} 25. Rd8 {[%clk 0:01:13]}  f6 {[%clk 0:01:33]} 26. Qb4 {[%clk 0:00:54]}  Qxb4 {[%clk 0:01:31]} 27. axb4 {[%clk 0:00:55]}  Kf7 {[%clk 0:01:31]} 28. b5 {[%clk 0:00:40]}  Nd7 {[%clk 0:01:22]} 29. Ra8 {[%clk 0:00:39]}  Bd5 {[%clk 0:01:18]} 30. Rxa7 {[%clk 0:00:38]}  Nb6 {[%clk 0:01:17]} 31. Kc2 {[%clk 0:00:32]}  Ke6 {[%clk 0:01:16]} 32. Kc3 {[%clk 0:00:31]}  Kd6 {[%clk 0:01:15]} 33. Kb4 {[%clk 0:00:31]}  Nc4 {[%clk 0:01:11]} 34. b3 {[%clk 0:00:27]}  Nd2 {[%clk 0:01:11]} 35. Ra3 {[%clk 0:00:18]}  Nf3 {[%clk 0:01:07]} 36. h4 {[%clk 0:00:18]}  Nd4 {[%clk 0:01:07]} 37. Ka4 {[%clk 0:00:16]}  Kc5 {[%clk 0:01:03]} 38. b4+ {[%clk 0:00:16]}  Kc4 {[%clk 0:01:03]} 39. Ka5 {[%clk 0:00:16]}  Nxb5 {[%clk 0:01:01]} 40. Ra1 {[%clk 0:00:11]}  Bc6 {[%clk 0:00:58]} 41. Rc1+ {[%clk 0:00:10]}  Kd4 {[%clk 0:00:57]} 42. Rc5 {[%clk 0:00:10]}  Nc3 {[%clk 0:00:55]} 43. h5 {[%clk 0:00:07]}  Ne4 {[%clk 0:00:54]} 44. Rc2 {[%clk 0:00:03]}  Kd3 {[%clk 0:00:54]} 45. Ra2 {[%clk 0:00:03]}  Nc3 {[%clk 0:00:53]} 46. Rb2 {[%clk 0:00:03]}  Kc4 {[%clk 0:00:51]} 47. Rd2 {[%clk 0:00:02]}  Nd5 {[%clk 0:00:48]} 48. b5 {[%clk 0:00:02]}  Bxb5 {[%clk 0:00:47]} 49. Rxd5 {[%clk 0:00:02]}  Kxd5 {[%clk 0:00:47]} 50. Kxb5 {[%clk 0:00:03]}  Ke4 {[%clk 0:00:47]} 51. Kc5 {[%clk 0:00:04]}  Kf3 {[%clk 0:00:45]} 52. Kd6 {[%clk 0:00:04]}  Kg4 {[%clk 0:00:44]} 53. Ke7 {[%clk 0:00:03]}  Kxh5 {[%clk 0:00:44]} 54. Kf7 {[%clk 0:00:02]}  Kh6 {[%clk 0:00:44]} 0-1


[Site "https://www.chess.com"]

[Event "Titled Tuesday Blitz June 27 Late 2023"]
[White "ElDivis"]
[Black "Maksimovic, Bojan"]
[BlackFideId "14408120"]
[WhiteElo "2552"]
[BlackElo "2791"]
[Result "1-0"]
[Round "2"]
[TimeControl "180+2"]
[Date "2023.06.27"]
[WhiteClock "0:00:16"]
[BlackClock "0:00:11"]
[Board "51"]

1. e4 {[%clk 0:03:00]}  g6 {[%clk 0:03:00]} 2. d4 {[%clk 0:03:00]}  Nf6 {[%clk 0:03:01]} 3. Nc3 {[%clk 0:03:01]}  d5 {[%clk 0:03:01]} 4. e5 {[%clk 0:02:50]}  Ne4 {[%clk 0:03:01]} 5. Nxe4 {[%clk 0:02:48]}  dxe4 {[%clk 0:03:02]} 6. Be3 {[%clk 0:02:45]}  Bg7 {[%clk 0:03:00]} 7. Qd2 {[%clk 0:02:41]}  c5 {[%clk 0:03:00]} 8. dxc5 {[%clk 0:02:41]}  Qxd2+ {[%clk 0:03:00]} 9. Bxd2 {[%clk 0:02:37]}  Bxe5 {[%clk 0:03:01]} 10. O-O-O {[%clk 0:02:37]}  O-O {[%clk 0:02:58]} 11. Ne2 {[%clk 0:02:33]}  Nc6 {[%clk 0:02:57]} 12. Nc3 {[%clk 0:02:33]}  f5 {[%clk 0:02:56]} 13. Bc4+ {[%clk 0:02:31]}  Kg7 {[%clk 0:02:57]} 14. Nd5 {[%clk 0:02:28]}  Be6 {[%clk 0:02:48]} 15. Bb3 {[%clk 0:02:22]}  Bxd5 {[%clk 0:02:39]} 16. Bxd5 {[%clk 0:02:22]}  Rfd8 {[%clk 0:02:40]} 17. Bxc6 {[%clk 0:02:17]}  bxc6 {[%clk 0:02:41]} 18. Ba5 {[%clk 0:02:15]}  Rd4 {[%clk 0:02:22]} 19. Bc3 {[%clk 0:01:42]}  Rxd1+ {[%clk 0:02:21]} 20. Rxd1 {[%clk 0:01:43]}  Bxc3 {[%clk 0:02:22]} 21. bxc3 {[%clk 0:01:44]}  Kf6 {[%clk 0:02:09]} 22. Rd7 {[%clk 0:01:39]}  Rc8 {[%clk 0:02:01]} 23. Rxa7 {[%clk 0:01:37]}  f4 {[%clk 0:02:01]} 24. Kd2 {[%clk 0:01:34]}  Rd8+ {[%clk 0:02:02]} 25. Ke2 {[%clk 0:01:33]}  Rd5 {[%clk 0:02:03]} 26. Ra5 {[%clk 0:01:25]}  g5 {[%clk 0:02:00]} 27. c4 {[%clk 0:01:25]}  Rd4 {[%clk 0:02:01]} 28. Ra4 {[%clk 0:01:24]}  h5 {[%clk 0:02:01]} 29. Rb4 {[%clk 0:01:20]}  g4 {[%clk 0:01:50]} 30. a4 {[%clk 0:01:13]}  f3+ {[%clk 0:01:30]} 31. gxf3 {[%clk 0:01:14]}  exf3+ {[%clk 0:01:31]} 32. Ke1 {[%clk 0:01:12]}  Re4+ {[%clk 0:01:26]} 33. Kf1 {[%clk 0:01:12]}  Re2 {[%clk 0:01:26]} 34. Rb2 {[%clk 0:01:09]}  e5 {[%clk 0:01:09]} 35. a5 {[%clk 0:01:07]}  e4 {[%clk 0:01:09]} 36. a6 {[%clk 0:00:56]}  e3 {[%clk 0:01:09]} 37. fxe3 {[%clk 0:00:57]}  Rxh2 {[%clk 0:01:10]} 38. Rb8 {[%clk 0:00:19]}  Kg7 {[%clk 0:00:50]} 39. a7 {[%clk 0:00:18]}  Rh1+ {[%clk 0:00:09]} 40. Kf2 {[%clk 0:00:18]}  Rh2+ {[%clk 0:00:09]} 41. Kg3 {[%clk 0:00:16]}  Rg2+ {[%clk 0:00:10]} 42. Kh4 {[%clk 0:00:16]}  f2 {[%clk 0:00:11]} 43. a8=Q {[%clk 0:00:16]}  f1=Q {[%clk 0:00:11]} 44. Rg8+ {[%clk 0:00:16]}  Kh7 {[%clk 0:00:08]} 45. Rh8+ {[%clk 0:00:16]}  Kg6 {[%clk 0:00:08]} 46. Qg8+ {[%clk 0:00:16]}  Kf5 {[%clk 0:00:09]} 47. Qf8+ {[%clk 0:00:16]}  Ke4 {[%clk 0:00:10]} 48. Qxf1 {[%clk 0:00:17]}  Rh2+ {[%clk 0:00:10]} 49. Kg5 {[%clk 0:00:16]}  g3 {[%clk 0:00:11]} 50. Re8# {[%clk 0:00:16]} 1-0


[Site "https://www.chess.com"]

[Event "Titled Tuesday Blitz June 27 Late 2023"]
[White "Morefield, Jason"]
[Black "Vaglio Mattey, Emanuel"]
[WhiteFideId "30920825"]
[BlackFideId "6504167"]
[WhiteElo "2765"]
[BlackElo "2550"]
[Result "1-0"]
[Round "2"]
[TimeControl "180+2"]
[Date "2023.06.27"]
[WhiteClock "0:00:27"]
[BlackClock "0:00:10"]
[Board "53"]

1. d4 {[%clk 0:03:00]}  Nf6 {[%clk 0:02:57]} 2. c4 {[%clk 0:02:59]}  e6 {[%clk 0:02:57]} 3. Nf3 {[%clk 0:02:58]}  Be7 {[%clk 0:02:55]} 4. Nc3 {[%clk 0:02:54]}  d5 {[%clk 0:02:56]} 5. Bf4 {[%clk 0:02:55]}  O-O {[%clk 0:02:56]} 6. e3 {[%clk 0:02:55]}  a6 {[%clk 0:02:56]} 7. c5 {[%clk 0:02:55]}  a5 {[%clk 0:02:34]} 8. Bd3 {[%clk 0:02:50]}  b6 {[%clk 0:02:34]} 9. cxb6 {[%clk 0:02:31]}  cxb6 {[%clk 0:02:35]} 10. Ne5 {[%clk 0:02:28]}  Ba6 {[%clk 0:02:28]} 11. Bb5 {[%clk 0:02:21]}  Bb4 {[%clk 0:02:26]} 12. Qa4 {[%clk 0:02:09]}  Ne4 {[%clk 0:02:23]} 13. Rc1 {[%clk 0:02:06]}  f6 {[%clk 0:02:07]} 14. Nd3 {[%clk 0:01:55]}  e5 {[%clk 0:01:45]} 15. dxe5 {[%clk 0:01:47]}  d4 {[%clk 0:01:33]} 16. Nxb4 {[%clk 0:01:22]}  axb4 {[%clk 0:00:54]} 17. Nxe4 {[%clk 0:01:18]}  Qd5 {[%clk 0:00:45]} 18. Bxa6 {[%clk 0:01:05]}  Qxe4 {[%clk 0:00:44]} 19. Qb3+ {[%clk 0:01:00]}  Kh8 {[%clk 0:00:43]} 20. Bc4 {[%clk 0:00:52]}  fxe5 {[%clk 0:00:41]} 21. Bd5 {[%clk 0:00:51]}  Qf5 {[%clk 0:00:41]} 22. Bxa8 {[%clk 0:00:50]}  exf4 {[%clk 0:00:41]} 23. O-O {[%clk 0:00:45]}  Nd7 {[%clk 0:00:41]} 24. Qd5 {[%clk 0:00:40]}  Qg4 {[%clk 0:00:24]} 25. h3 {[%clk 0:00:32]}  Qg6 {[%clk 0:00:09]} 26. Qxd7 {[%clk 0:00:31]}  f3 {[%clk 0:00:09]} 27. Bxf3 {[%clk 0:00:30]}  h5 {[%clk 0:00:09]} 28. Rc8 {[%clk 0:00:29]}  Rxc8 {[%clk 0:00:08]} 29. Qxc8+ {[%clk 0:00:29]}  Kh7 {[%clk 0:00:09]} 30. exd4 {[%clk 0:00:29]}  h4 {[%clk 0:00:10]} 31. Qc6 {[%clk 0:00:27]}  Kh6 {[%clk 0:00:10]} 32. Qxg6+ {[%clk 0:00:27]}  Kxg6 {[%clk 0:00:10]} 33. b3 {[%clk 0:00:27]} 1-0


[Site "https://www.chess.com"]